fUSD/lending_fUSD_20250806
["ID","MTS","AMOUNT","RATE_DAILY","PERIOD"]
[377644510,1754472696685,-400.0,0.00034246,14]
[377644511,1754472696695,-436.02,0.00034246,14]
[377644512,1754472696704,-1014.71,0.00034246,14]
[377644513,1754472696713,-525.83,0.00034246,14]
[377644514,1754472696723,-1019.92,0.00034246,14]
[377644515,1754472696731,-2070.71,0.00034246,14]
[377644516,1754472696740,-684.99,0.00034246,14]
[377644517,1754472696749,-409.88,0.00034246,14]
[377644518,1754472696759,-400.0,0.00034246,7]
[377644519,1754472696770,-400.0,0.00034246,14]
[377644520,1754472696780,-400.0,0.00034246,14]
[377644521,1754472696789,-400.0,0.00034246,14]
[377644522,1754472696799,-400.0,0.00034246,14]
[377644523,1754472696808,-2394.92,0.00034246,14]
[377644524,1754472696817,-1109.75,0.00034246,14]
[377644525,1754472696826,-400.0,0.00034246,14]
[377644526,1754472696835,-1223.29,0.00034246,14]
[377644527,1754472696845,-400.0,0.00034246,14]
[377644528,1754472696855,-1725.88,0.00034246,14]
[377644529,1754472696866,-1427.02,0.00034246,14]
[377644530,1754472696877,-400.0,0.00034246,14]
[377644531,1754472696886,-504.62,0.00034246,14]
[377644532,1754472696895,-1421.91,0.00034246,14]
[377644533,1754472696905,-400.0,0.00034246,14]
[377644534,1754472696914,-400.0,0.00034246,14]
[377644535,1754472696923,-3298.12,0.00034246,14]
[377644536,1754472696932,-2787.8,0.00034246,14]
[377644537,1754472696943,-481.83,0.00034246,14]
[377644538,1754472696953,-400.0,0.00034246,14]
[377644539,1754472696964,-561.27,0.00034246,14]
[377644540,1754472696973,-570.18,0.00034246,14]
[377644541,1754472696983,-629.57,0.00034246,14]
[377644542,1754472696993,-400.0,0.00034246,14]
[377644543,1754472697002,-829.03,0.00034246,14]
[377644544,1754472697013,-400.0,0.00034246,14]
[377644545,1754472697023,-400.0,0.00034246,14]
[377644546,1754472697034,-2198.26,0.00034246,14]
[377644547,1754472697044,-1336.43,0.00034246,14]
[377644548,1754472697054,-400.0,0.00034246,14]
[377644549,1754472697064,-1627.97,0.00034246,14]
[377644550,1754472697074,-400.0,0.00034246,14]
[377644551,1754472697082,-237.80520098,0.00034246,14]
[377644552,1754472697093,-400.0,0.00034246,14]
[377644553,1754472697104,-1432.81,0.00034246,14]
[377644554,1754472697115,-1630.21,0.00034246,14]
[377644555,1754472697125,-445.94,0.00034246,14]
[377644556,1754472697136,-400.0,0.00034246,14]
[377644557,1754472697147,-1668.91,0.00034246,14]
[377644558,1754472697157,-400.0,0.00034246,14]
[377644559,1754472697167,-1843.0,0.00034246,14]
[377644560,1754472697176,-400.0,0.00034246,14]
[377644561,1754472697186,-400.0,0.00034246,14]
[377644562,1754472697196,-1085.22,0.00034246,14]
[377644563,1754472697205,-817.37,0.00034246,14]
[377644564,1754472697214,-1670.33,0.00034246,14]
[377644565,1754472697223,-566.72,0.00034246,14]
[377644566,1754472697233,-269.46077132,0.00034246,14]
[377644567,1754472697242,-400.0,0.00034246,14]
[377644568,1754472697251,-1347.72,0.00034246,14]
[377644569,1754472697260,-1354.03,0.00034246,14]
[377644570,1754472697270,-400.0,0.00034246,14]
[377644571,1754472697281,-1589.42,0.00034246,14]
[377644572,1754472697294,-502.65,0.00034246,14]
[377644573,1754472697303,-492.48,0.00034246,14]
[377644574,1754472697312,-3266.64,0.00034246,14]
[377644575,1754472697322,-1619.07,0.00034246,14]
[377644576,1754472697331,-645.1,0.00034246,14]
[377644577,1754472697341,-1850.1,0.00034246,14]
[377644578,1754472697350,-950.54,0.00034246,14]
[377644579,1754472697359,-400.0,0.00034246,14]
[377644580,1754472697370,-467.2,0.00034246,14]
[377644581,1754472697379,-400.0,0.00034246,14]
[377644582,1754472697388,-400.0,0.00034246,14]
[377644583,1754472697398,-400.0,0.00034246,14]
[377644584,1754472697407,-400.0,0.00034246,14]
[377644585,1754472697417,-400.0,0.00034246,14]
[377644586,1754472697426,-400.0,0.00034246,14]
[377644587,1754472697435,-400.0,0.00034246,14]
[377644588,1754472697444,-1195.13,0.00034246,14]
[377644589,1754472697454,-490.64,0.00034246,14]
[377644590,1754472697463,-3291.23,0.00034246,14]
[377644591,1754472697472,-400.0,0.00034246,14]
[377644592,1754472697481,-400.0,0.00034246,14]
[377644593,1754472697490,-2029.19,0.00034246,14]
[377644594,1754472697499,-1045.87,0.00034246,14]
[377644595,1754472697508,-400.0,0.00034246,14]
[377644596,1754472697517,-1112.77,0.00034246,14]
[377644597,1754472697525,-400.0,0.00034246,14]
[377644598,1754472697534,-400.0,0.00034246,14]
[377644599,1754472697543,-855.57,0.00034246,14]
[377644600,1754472697552,-400.0,0.00034246,14]
[377644601,1754472697561,-522.9,0.00034246,14]
[377644602,1754472697570,-969.0,0.00034246,14]
[377644603,1754472697579,-400.0,0.00034246,14]
[377644604,1754472697588,-567.98,0.00034246,14]
[377644605,1754472697597,-704.73,0.00034246,14]
[377644606,1754472697606,-400.0,0.00034246,14]
[377644607,1754472697614,-1710.63,0.00034246,14]
[377644608,1754472697623,-1952.49,0.00034246,14]
[377644609,1754472697632,-1742.7,0.00034246,14]
[377644610,1754472697641,-400.0,0.00034246,14]
[377644611,1754472697650,-1009.73,0.00034246,14]
[377644612,1754472697659,-400.0,0.00034246,14]
[377644613,1754472697668,-596.46,0.00034246,14]
[377644614,1754472697676,-536.37592317,0.00034246,14]
[377644615,1754472697685,-1589.35,0.00034246,14]
[377644616,1754472697694,-400.0,0.00034246,14]
[377644617,1754472697703,-556.42,0.00034246,14]
[377644618,1754472697712,-1936.66,0.00034246,14]
[377644619,1754472697721,-1506.0,0.00034246,14]
[377644620,1754472697730,-400.0,0.00034246,14]
[377644621,1754472697739,-459.9,0.00034246,14]
[377644622,1754472697749,-400.0,0.00034246,14]
[377644623,1754472697759,-400.0,0.00034246,14]
[377644624,1754472697769,-400.0,0.00034246,14]
[377644625,1754472697778,-1221.87,0.00034246,14]
[377644626,1754472697788,-400.0,0.00034246,14]
[377644627,1754472697797,-795.52,0.00034246,14]
[377644628,1754472697807,-400.0,0.00034246,14]
[377644629,1754472697816,-2962.89,0.00034246,14]
[377644630,1754472697826,-1398.21,0.00034246,14]
[377644631,1754472697835,-400.0,0.00034246,14]
[377644632,1754472697843,-1284.76,0.00034246,14]
[377644633,1754472697853,-400.0,0.00034246,14]
[377644634,1754472697862,-1000.88,0.00034246,14]
[377644635,1754472697871,-885.84,0.00034246,14]
[377644636,1754472697881,-400.0,0.00034246,14]
[377644637,1754472697890,-1118.6,0.00034246,14]
[377644638,1754472697899,-400.0,0.00034246,14]
[377644639,1754472697908,-400.0,0.00034246,14]
[377644640,1754472697917,-2483.76,0.00034246,14]
[377644641,1754472697927,-400.0,0.00034246,14]
[377644642,1754472697936,-1076.18,0.00034246,14]
[377644643,1754472697945,-400.0,0.00034246,14]
[377644644,1754472697954,-2041.0,0.00034246,14]
[377644645,1754472697963,-2188.55,0.00034246,14]
[377644646,1754472697973,-484.96,0.00034246,14]
[377644647,1754472697982,-2642.37,0.00034246,14]
[377644648,1754472697991,-400.0,0.00034246,14]
[377644649,1754472698001,-400.0,0.00034246,14]
[377644650,1754472698010,-606.9,0.00034246,14]
[377644651,1754472698019,-639.5,0.00034246,14]
[377644652,1754472698029,-921.58,0.00034246,14]
[377644653,1754472698038,-400.0,0.00034246,14]
[377644654,1754472698047,-408.47,0.00034246,14]
[377644655,1754472698057,-2601.36,0.00034246,14]
[377644656,1754472698066,-3015.93,0.00034246,14]
[377644657,1754472698076,-400.0,0.00034246,14]
[377644658,1754472698085,-1337.97,0.00034246,14]
[377644659,1754472698094,-903.06,0.00034246,14]
[377644660,1754472698103,-400.0,0.00034246,14]
[377644661,1754472698112,-1265.66,0.00034246,14]
[377644662,1754472698122,-400.0,0.00034246,14]
[377644663,1754472698130,-400.0,0.00034246,14]
[377644664,1754472698140,-400.0,0.00034246,14]
[377644665,1754472698149,-514.38,0.00034246,14]
[377644666,1754472698158,-400.0,0.00034246,14]
[377644667,1754472698167,-461.86,0.00034246,14]
[377644668,1754472698176,-3139.67,0.00034246,14]
[377644669,1754472698185,-859.1,0.00034246,14]
[377644670,1754472698194,-2521.62,0.00034246,14]
[377644671,1754472698203,-400.0,0.00034246,14]
[377644672,1754472698213,-3275.14,0.00034246,14]
[377644673,1754472698221,-400.0,0.00034246,14]
[377644674,1754472698230,-400.0,0.00034246,14]
[377644675,1754472698239,-2615.65,0.00034246,14]
[377644676,1754472698249,-400.0,0.00034246,14]
[377644677,1754472698258,-486.43,0.00034246,14]
[377644678,1754472698268,-1095.7,0.00034246,14]
[377644679,1754472698278,-1800.32,0.00034246,14]
[377644680,1754472698289,-400.0,0.00034246,14]
[377644681,1754472698299,-1491.36,0.00034246,14]
[377644682,1754472698308,-400.0,0.00034246,14]
[377644683,1754472698317,-400.0,0.00034246,14]
[377644684,1754472698327,-1155.98,0.00034246,14]
[377644685,1754472698337,-407.77840639,0.00034246,14]
[377644686,1754472698346,-1479.06,0.00034246,14]
[377644687,1754472698355,-400.0,0.00034246,14]
[377644688,1754472698366,-405.78,0.00034246,14]
[377644689,1754472698375,-400.0,0.00034246,14]
[377644690,1754472698384,-400.0,0.00034246,14]
[377644691,1754472698393,-1233.4,0.00034246,14]
[377644692,1754472698403,-400.0,0.00034246,14]
[377644693,1754472698412,-1802.48,0.00034246,14]
[377644694,1754472698421,-1286.52,0.00034246,14]
[377644695,1754472698430,-775.56,0.00034246,14]
[377644696,1754472698440,-491.9,0.00034246,14]
[377644697,1754472698449,-1972.32,0.00034246,14]
[377644698,1754472698458,-1913.07,0.00034246,14]
[377644699,1754472698467,-587.36,0.00034246,14]
[377644700,1754472698476,-1136.81,0.00034246,14]
[377644701,1754472698486,-622.66,0.00034246,14]
[377644702,1754472698496,-400.0,0.00034246,14]
[377644703,1754472698505,-2120.97,0.00034246,14]
[377644704,1754472698515,-400.0,0.00034246,14]
[377644705,1754472698524,-657.43,0.00034246,14]
[377644706,1754472698534,-162.38900075,0.00034246,14]
[377644707,1754472698542,-986.68,0.00034246,14]
[377644708,1754472698551,-764.11,0.00034246,14]
[377644709,1754472698561,-794.64,0.00034246,14]
[377644710,1754472698571,-526.32,0.00034246,14]
[377644711,1754472698580,-1944.29,0.00034246,14]
[377644712,1754472698591,-616.85,0.00034246,14]
[377644713,1754472698601,-926.25,0.00034246,14]
[377644714,1754472698610,-3092.49,0.00034246,14]
[377644715,1754472698621,-1860.37,0.00034246,14]
[377644716,1754472698631,-400.0,0.00034246,14]
[377644717,1754472698640,-400.0,0.00034246,14]
[377644718,1754472698650,-672.46,0.00034246,14]
[377644719,1754472698661,-473.56,0.00034246,14]
[377644720,1754472698671,-2459.31,0.00034246,14]
[377644721,1754472698681,-1454.61,0.00034246,14]
[377644722,1754472698691,-400.0,0.00034246,14]
[377644723,1754472698702,-2770.32,0.00034246,14]
[377644724,1754472698711,-641.51,0.00034246,14]
[377644725,1754472698721,-691.08,0.00034246,14]
[377644726,1754472698731,-848.2,0.00034246,14]
[377644727,1754472698740,-431.91,0.00034246,14]
[377644728,1754472698749,-1424.95,0.00034246,14]
[377644729,1754472698759,-3117.05,0.00034246,2]
[377644730,1754472698772,-1462.59,0.00034246,14]
[377644731,1754472698782,-2676.8,0.00034246,14]
[377644732,1754472698791,-400.0,0.00034246,14]
[377644733,1754472698801,-400.0,0.00034246,14]
[377644734,1754472698810,-584.2,0.00034246,14]
[377644735,1754472698820,-1546.96,0.00034246,14]
[377644736,1754472698830,-1187.36,0.00034246,14]
[377644737,1754472698839,-1852.96,0.00034246,14]
[377644738,1754472698848,-2478.53,0.00034246,14]
[377644739,1754472698858,-400.0,0.00034246,14]
[377644740,1754472698867,-400.0,0.00034246,14]
[377644741,1754472698877,-1625.5,0.00034246,14]
[377644742,1754472698886,-400.0,0.00034246,14]
[377644743,1754472698895,-938.6,0.00034246,14]
[377644744,1754472698904,-400.0,0.00034246,14]
[377644745,1754472698914,-1006.08,0.00034246,14]
[377644746,1754472698923,-400.0,0.00034246,14]
[377644747,1754472698933,-239.15346841,0.00034246,14]
[377644748,1754472698942,-400.0,0.00034246,14]
[377644749,1754472698951,-1222.66,0.00034246,14]
[377644750,1754472698961,-400.0,0.00034246,14]
[377644751,1754472698971,-400.0,0.00034246,14]
[377644752,1754472698981,-1260.63,0.00034246,14]
[377644753,1754472698990,-2138.99,0.00034246,14]
[377644754,1754472699000,-400.0,0.00034246,14]
[377644755,1754472699009,-400.0,0.00034246,14]
[377644756,1754472699018,-1107.02,0.00034246,14]
[377644757,1754472699027,-1934.4,0.00034246,14]
[377644758,1754472699036,-400.0,0.00034246,14]
[377644759,1754472699045,-1833.99,0.00034246,14]
[377644760,1754472699054,-1830.51,0.00034246,14]
[377644761,1754472699063,-1113.65,0.00034246,14]
[377644762,1754472699074,-2149.28,0.00034246,14]
[377644763,1754472699083,-2021.91,0.00034246,14]
[377644764,1754472699092,-400.0,0.00034246,14]
[377644765,1754472699101,-400.0,0.00034246,14]
[377644766,1754472699110,-400.0,0.00034246,14]
[377644767,1754472699119,-978.61,0.00034246,14]
[377644768,1754472699129,-1143.73,0.00034246,14]
[377644769,1754472699138,-400.0,0.00034246,14]
[377644770,1754472699147,-2027.48,0.00034246,14]
[377644771,1754472699156,-2140.34,0.00034246,14]
[377644772,1754472699165,-400.0,0.00034246,14]
[377644773,1754472699174,-400.0,0.00034246,14]
[377644774,1754472699184,-400.0,0.00034246,14]
[377644775,1754472699193,-400.0,0.00034246,14]
[377644776,1754472699202,-1983.09,0.00034246,14]
[377644777,1754472699211,-708.15,0.00034246,14]
[377644778,1754472699221,-400.0,0.00034246,14]
[377644779,1754472699230,-689.94,0.00034246,14]
[377644780,1754472699239,-1610.53,0.00034246,14]
[377644781,1754472699248,-400.0,0.00034246,14]
[377644782,1754472699257,-529.32,0.00034246,14]
[377644783,1754472699267,-400.0,0.00034246,14]
[377644784,1754472699277,-1854.31,0.00034246,14]
[377644785,1754472699287,-400.0,0.00034246,14]
[377644786,1754472699300,-1722.71,0.00034246,14]
[377644787,1754472699309,-379.58173996,0.00034246,120]
[377644788,1754472699320,-400.0,0.00034246,14]
[377644789,1754472699330,-409.49,0.00034246,14]
[377644790,1754472699341,-1044.72,0.00034246,14]
[377644791,1754472699352,-1979.83,0.00034246,14]
[377644792,1754472699361,-535.78,0.00034246,14]
[377644793,1754472699373,-1315.35,0.00034246,14]
[377644794,1754472699383,-2279.73,0.00034246,14]
[377644795,1754472699393,-416.80630034,0.00034246,14]
[377644796,1754472699402,-400.0,0.00034246,14]
[377644797,1754472699412,-400.0,0.00034246,14]
[377644798,1754472699422,-1216.24,0.00034246,14]
[377644799,1754472699431,-1755.24,0.00034246,14]
[377644800,1754472699441,-403.43023176,0.00034246,14]
[377644801,1754472699450,-692.72,0.00034246,14]
[377644802,1754472699460,-400.0,0.00034246,14]
[377644803,1754472699469,-400.0,0.00034246,14]
[377644804,1754472699478,-691.38,0.00034246,14]
[377644805,1754472699488,-992.76,0.00034246,14]
[377644806,1754472699497,-400.0,0.00034246,14]
[377644807,1754472699507,-407.56,0.00034246,14]
[377644808,1754472699516,-400.0,0.00034246,14]
[377644809,1754472699643,-628.91,0.00034246,14]
[377644810,1754472699663,-1701.27,0.00034246,14]
[377644811,1754472699674,-2097.62,0.00034246,14]
[377644812,1754472699684,-400.0,0.00034246,14]
[377644813,1754472699695,-1810.02,0.00034246,14]
[377644814,1754472699705,-2903.24,0.00034246,14]
[377644815,1754472699715,-400.0,0.00034246,14]
[377644816,1754472699726,-400.0,0.00034246,14]
[377644817,1754472699736,-2203.02,0.00034246,14]
[377644818,1754472699746,-346.14646976,0.00034246,14]
[377644819,1754472699759,-810.17,0.00034246,14]
[377644820,1754472699770,-2745.35,0.00034246,14]
[377644821,1754472699780,-700.93,0.00034246,14]
[377644822,1754472699790,-923.07,0.00034246,14]
[377644823,1754472699801,-1333.96,0.00034246,14]
[377644824,1754472699814,-1226.68,0.00034246,14]
[377644825,1754472699826,-465.27,0.00034246,14]
[377644826,1754472699837,-1913.66,0.00034246,14]
[377644827,1754472699846,-400.0,0.00034246,14]
[377644828,1754472699856,-673.17,0.00034246,14]
[377644829,1754472699865,-1145.51,0.00034246,14]
[377644830,1754472699875,-1512.02,0.00034246,14]
[377644831,1754472699884,-1453.65,0.00034246,14]
[377644832,1754472699894,-940.71,0.00034246,14]
[377644833,1754472699904,-1636.86,0.00034246,14]
[377644834,1754472699913,-400.0,0.00034246,14]
[377644835,1754472699923,-400.0,0.00034246,14]
[377644836,1754472699933,-1624.34,0.00034246,14]
[377644837,1754472699942,-400.0,0.00034246,14]
[377644838,1754472699952,-400.0,0.00034246,14]
[377644839,1754472699962,-400.0,0.00034246,14]
[377644840,1754472699971,-426.1,0.00034246,14]
[377644841,1754472699981,-1183.18,0.00034246,14]
[377644842,1754472699990,-664.11,0.00034246,14]
[377644843,1754472700000,-1035.63,0.00034246,14]
[377644844,1754472700010,-1056.68,0.00034246,14]
[377644845,1754472700020,-2800.15,0.00034246,14]
[377644846,1754472700030,-465.0,0.00034247,10]
[377644847,1754472700039,-2569.7,0.00034269,14]
[377644848,1754472700049,-2569.7,0.00034272,14]
[377644849,1754472700058,-21707.04,0.000343,14]
[377644850,1754472700068,-38807.61,0.000343,2]
[377644851,1754472700079,-1308.23674806,0.00034387,2]
[377644852,1754472700089,-152.7069915,0.0003442,15]
[377644853,1754472700098,-2569.7,0.00034434,14]
[377644854,1754472700108,-2569.7,0.00034461,14]
[377644855,1754472700118,-2569.7,0.00034461,14]
[377644856,1754472700128,-2569.7,0.00034461,14]
[377644857,1754472700141,-2569.7,0.00034461,14]
[377644858,1754472700151,-2569.72559236,0.00034461,14]
[377644859,1754472700162,-1117.7,0.000345,30]
[377644860,1754472700171,-500.0,0.0003451,7]
[377644861,1754472700181,-270.4473648,0.0003451,7]
[377644862,1754472700191,-524.37526121,0.0003451,7]
[377644863,1754472700200,-280.68562869,0.0003451,7]
[377644865,1754472700905,-219.31437131,0.0003451,7]
[377644866,1754472700914,-437.0,0.00034519,10]
[377644867,1754472700923,-500.0,0.00034519,10]
[377644868,1754472700933,-597.0,0.00034519,10]
[377644869,1754472700943,-500.0,0.0003452,2]
[377644870,1754472700954,-1147.0,0.0003452,2]
[377644871,1754472700964,-580.99427031,0.0003452,2]
[377644872,1754472700974,-300.91960115,0.0003452,14]
[377644873,1754472700984,-400.0,0.0003452,14]
[377644874,1754472700994,-400.0,0.0003452,14]
[377644875,1754472701004,-400.0,0.0003452,14]
[377644876,1754472701013,-400.0,0.0003452,14]
[377644877,1754472701024,-350.0,0.0003452,14]
[377644878,1754472701034,-400.0,0.0003452,14]
[377644879,1754472701045,-400.0,0.0003452,14]
[377644880,1754472701055,-400.0,0.0003452,14]
[377644881,1754472701064,-400.0,0.0003452,14]
[377644882,1754472701075,-400.0,0.0003452,14]
[377644883,1754472701084,-345.48883704,0.0003452,14]
[377644884,1754472701094,-400.0,0.0003452,14]
[377644885,1754472701103,-400.0,0.0003452,14]
[377644886,1754472701114,-400.0,0.0003452,14]
[377644887,1754472701124,-510.38334723,0.0003452,14]
[377644888,1754472701134,-400.0,0.0003452,14]
[377644889,1754472701144,-469.13016881,0.0003452,14]
[377644890,1754472701154,-400.0,0.0003452,14]
[377644891,1754472701163,-400.0,0.0003452,14]
[377644892,1754472701173,-400.0,0.0003452,14]
[377644893,1754472701182,-963.88,0.0003452,14]
[377644894,1754472701191,-263.56873663,0.0003452,14]
[377644895,1754472701275,-136.43126337,0.0003452,14]
[377644896,1754472701284,-400.0,0.0003452,14]
[377644897,1754472701298,-400.0,0.0003452,14]
[377644898,1754472701308,-1257.0,0.0003452,14]
[377644899,1754472701318,-400.0,0.0003452,14]
[377644900,1754472701328,-527.85,0.0003452,14]
[377644901,1754472701340,-666.03370823,0.0003452,14]
[377644902,1754472701352,-1105.23629177,0.0003452,14]
[377644903,1754472701366,-364.4469308,0.0003452,14]
[377644904,1754472702767,-500.0,0.00032875,10]
[377644905,1754472702777,-151.0,0.00032876,7]
[377644906,1754472702787,-495.74304392,0.00032876,28]
[377644907,1754472702799,-1004.25695608,0.00032876,28]
[377644908,1754472702809,-28.49304392,0.00032876,7]
[377644909,1754472702847,-122.50695608,0.00032876,7]
[377644910,1754472702856,-1500.0,0.00032876,28]
[377644911,1754472702867,-156.249529,0.00032876,7]
[377644912,1754472702876,-736.02593106,0.00032876,28]
[377644913,1754472702888,-746.7017805,0.00032876,28]
[377644914,1754472702900,-17.27228844,0.00032876,28]
[377644915,1754472702910,-959.97215391,0.00032876,28]
[377644916,1754472702922,-540.02784609,0.00032876,28]
[377644917,1754472702931,-31.97215391,0.00032876,28]
[377644918,1754472705146,1154.0,0.0003013,120]
[377644919,1754472705827,-888.0,0.0002887,3]
[377644920,1754472705838,-1027.81444577,0.00030975,2]
[377644921,1754472705948,-890.18555423,0.00030975,2]
[377644922,1754472705959,-1181.87677749,0.0003111,3]
[377644923,1754472750287,642.0,0.0003013,120]
[377644924,1754472792903,185.0,0.0003013,120]
[377644926,1754472816287,154.0,0.00013699,2]
[377644930,1754473106816,250.0,0.00015,2]
[377644936,1754473667301,182.28,0.00030136,120]
[377644937,1754473710009,150.0,0.00030136,120]
[377644951,1754473768877,154.14,0.00013699,2]
[377644958,1754473832473,-154.14,0.00023182,2]
[377644959,1754473832483,-189.62,0.00024764,2]
[377644960,1754473832494,-367.61,0.00025674,2]
[377644961,1754473832504,-367.61,0.00027404,2]
[377644962,1754473832515,-174.91,0.0002892,2]
[377644963,1754473832526,-367.61,0.00029135,2]
[377644964,1754473832537,-160.0,0.00029998,2]
[377644965,1754473832548,-1200.0,0.00029998,2]
[377644966,1754473832558,-522.20173783,0.00029999,2]
[377644967,1754473832570,-287.11554963,0.00029999,2]
[377644968,1754473832582,-649.0,0.00029999,2]
[377644969,1754473832593,-300.0,0.00029999,2]
[377644970,1754473832604,-15.05623275,0.0003,7]
[377644982,1754473833466,-2187.16143953,0.0003,7]
[377644983,1754473833478,-16281.4387431,0.0003,7]
[377644984,1754473833591,-2172.6880549,0.0003,7]
[377644985,1754473833652,-1323.4572837,0.0003,7]
[377644986,1754473833664,-1200.24403036,0.0003,7]
[377644987,1754473833675,-13772.93752622,0.0003,7]
[377644988,1754473833686,-73146.21335128,0.0003,7]
[377644989,1754473833698,-12165.30331925,0.0003,7]
[377644990,1754473833709,-7809.30286855,0.0003,7]
[377644991,1754473833719,-154.0,0.0003,14]
[377644992,1754473833728,-152.0,0.00030017,3]
[377644993,1754473833738,-154.0,0.00030411,14]
[377644994,1754473833747,-361.29973527,0.00030546,2]
[377644995,1754473833757,-13989.03428835,0.00030811,2]
[377645058,1754473839049,-472.054999,0.00027904,3]
[377645066,1754473839117,-415.945001,0.00027904,3]
[377645068,1754473839127,-220.32018737,0.00029898,2]
[377645070,1754473839137,-569.02731069,0.00030144,3]
[377645073,1754473839149,-1206.97268931,0.00030144,3]
[377645075,1754473839158,-888.0,0.000305,3]
[377645077,1754473839167,-2636.17571165,0.00030811,2]
[377645079,1754473839177,-1000.0,0.00030822,2]
[377645081,1754473839186,-367.61,0.00030865,2]
[377645083,1754473839196,-1850.47,0.00030866,2]
[377645085,1754473839205,-1942.67,0.00030908,120]
[377645087,1754473839215,-151.0,0.00030975,2]
[377645089,1754473839224,-1871.0921568,0.00030985,2]
[377645098,1754473839303,-2919.65551344,0.00030985,2]
[377645122,1754473840903,-368.54592925,0.00028404,3]
[377645126,1754473843257,-519.45407075,0.00028404,3]
[377645127,1754473843267,-601.69092925,0.00028904,3]
[377645132,1754473843623,-286.30907075,0.00028904,3]
[377645133,1754473843637,-689.00824925,0.00030644,3]
[377645134,1754473843651,-287.02540688,0.00030644,3]
[377645135,1754473843681,-309.86593324,0.00030644,3]
[377645136,1754473843725,-490.10041063,0.00030644,3]
[377645137,1754473843736,-2934.74210137,0.00030985,2]
[377645144,1754473846475,-888.0,0.00028403,3]
[377645145,1754473846485,-428.62022839,0.00030985,2]
[377645146,1754473846495,-169.06313579,0.00030985,2]
[377645147,1754473846505,-448.32,0.00030989,2]
[377645148,1754473846515,-3244.49,0.00031,2]
[377645149,1754473846524,-391.9611755,0.00031054,2]
[377645150,1754473846577,-1271.09908785,0.00031054,2]
[377645152,1754474349482,265.51,0.00030136,120]
[377645153,1754474422044,-438.0581882,0.00020001,2]
[377645157,1754474717525,159.95,0.00013699,2]
[377645158,1754474759071,-250.0,0.00020092,2]
[377645159,1754474759093,-1000.0,0.00020092,4]
[377645160,1754474759116,-210.63941283,0.00020092,2]
[377645161,1754474759137,-151.42,0.00020184,2]
[377645162,1754474759159,-250.0,0.00020226,2]
[377645163,1754474759182,-255.0,0.0002031,2]
[377645164,1754474759204,-255.0,0.00020315,2]
[377645165,1754474759227,-255.0,0.0002032,2]
[377645166,1754474759248,-257.13577246,0.00020325,2]
[377645167,1754474759272,-156.14,0.00020409,2]
[377645168,1754474811064,150.0,0.0002013,2]
[377645170,1754474852695,158.22,0.00028443,120]
[377645174,1754474948711,3301.995717,7.945e-05,2]
[377645187,1754475038230,-703.20299149,0.00021035,2]
[377645188,1754475038274,-1767.50712416,0.00021035,2]
[377645189,1754475038355,-2529.28988435,0.00021035,2]
[377645190,1754475038365,-1200.0,0.00021655,2]
[377645191,1754475038375,-1844.72,0.00021656,2]
[377645192,1754475038385,-150.0,0.00021835,2]
[377645193,1754475038396,-1542.57,0.00022661,2]
[377645194,1754475038406,-300.0,0.00023137,2]